[Event "Titled Tuesday Blitz January 17 Early 2023"]
[White "Ezat, Mohamed"]
[Black "Gholami Orimi, Mahdi"]
[WhiteFideId "10600906"]
[BlackFideId "12558486"]
[WhiteElo "2402"]
[BlackElo "2420"]
[Result "0-1"]
[Round "01"]
[TimeControl "180+2"]
[Date "2023.01.17"]
[WhiteClock "0:00:09"]
[BlackClock "0:00:08"]

1. d4 {[%clk 0:02:43]}  Nf6 {[%clk 0:01:43]} 2. Nf3 {[%clk 0:02:42]}  d5 {[%clk 0:01:41]} 3. Nc3 {[%clk 0:02:38]}  Bf5 {[%clk 0:01:39]} 4. Bf4 {[%clk 0:02:37]}  c6 {[%clk 0:01:39]} 5. e3 {[%clk 0:02:37]}  e6 {[%clk 0:01:38]} 6. Bd3 {[%clk 0:02:37]}  Nbd7 {[%clk 0:01:38]} 7. Ne5 {[%clk 0:02:36]}  Bb4 {[%clk 0:01:37]} 8. O-O {[%clk 0:02:32]}  O-O {[%clk 0:01:36]} 9. Ne2 {[%clk 0:02:28]}  Nxe5 {[%clk 0:01:32]} 10. Bxe5 {[%clk 0:02:27]}  Nd7 {[%clk 0:01:33]} 11. Bg3 {[%clk 0:02:27]}  Re8 {[%clk 0:01:32]} 12. c3 {[%clk 0:02:24]}  Bf8 {[%clk 0:01:32]} 13. Bxf5 {[%clk 0:02:07]}  exf5 {[%clk 0:01:33]} 14. Nf4 {[%clk 0:02:05]}  Nf6 {[%clk 0:01:30]} 15. Bh4 {[%clk 0:02:01]}  Qd6 {[%clk 0:01:28]} 16. Bxf6 {[%clk 0:01:58]}  Qxf6 {[%clk 0:01:29]} 17. Nd3 {[%clk 0:01:54]}  Bd6 {[%clk 0:01:29]} 18. g3 {[%clk 0:01:53]}  Re7 {[%clk 0:01:25]} 19. Rc1 {[%clk 0:01:53]}  Rae8 {[%clk 0:01:25]} 20. c4 {[%clk 0:01:52]}  dxc4 {[%clk 0:01:26]} 21. Rxc4 {[%clk 0:01:51]}  g5 {[%clk 0:01:25]} 22. Qh5 {[%clk 0:01:49]}  Qg6 {[%clk 0:01:20]} 23. Qxg6+ {[%clk 0:01:48]}  hxg6 {[%clk 0:01:21]} 24. Rfc1 {[%clk 0:01:45]}  Kg7 {[%clk 0:01:21]} 25. b4 {[%clk 0:01:45]}  f4 {[%clk 0:01:14]} 26. gxf4 {[%clk 0:01:44]}  gxf4 {[%clk 0:01:14]} 27. exf4 {[%clk 0:01:39]}  Re2 {[%clk 0:01:09]} 28. R4c2 {[%clk 0:01:37]}  Rxc2 {[%clk 0:01:05]} 29. Rxc2 {[%clk 0:01:36]}  Re4 {[%clk 0:01:05]} 30. Nc5 {[%clk 0:01:31]}  Rxd4 {[%clk 0:01:02]} 31. Nxb7 {[%clk 0:01:31]}  Bxb4 {[%clk 0:01:02]} 32. Rxc6 {[%clk 0:01:30]}  Rxf4 {[%clk 0:01:03]} 33. Rc7 {[%clk 0:01:21]}  Be1 {[%clk 0:01:00]} 34. Nd8 {[%clk 0:01:17]}  Rxf2 {[%clk 0:00:44]} 35. Rxa7 {[%clk 0:01:05]}  Rf5 {[%clk 0:00:37]} 36. Kg2 {[%clk 0:01:02]}  Bh4 {[%clk 0:00:36]} 37. Ne6+ {[%clk 0:00:54]}  Kh6 {[%clk 0:00:35]} 38. Nd4 {[%clk 0:00:53]}  Rf2+ {[%clk 0:00:24]} 39. Kh1 {[%clk 0:00:47]}  f5 {[%clk 0:00:22]} 40. Ra8 {[%clk 0:00:44]}  Bf6 {[%clk 0:00:22]} 41. Ne6 {[%clk 0:00:43]}  Be5 {[%clk 0:00:20]} 42. Ra6 {[%clk 0:00:33]}  Rxh2+ {[%clk 0:00:19]} 43. Kg1 {[%clk 0:00:34]}  Rh4 {[%clk 0:00:16]} 44. Nf8 {[%clk 0:00:32]}  Rg4+ {[%clk 0:00:16]} 45. Kf2 {[%clk 0:00:30]}  Bg7 {[%clk 0:00:17]} 46. Ne6 {[%clk 0:00:28]}  Bc3 {[%clk 0:00:14]} 47. Rc6 {[%clk 0:00:23]}  Be5 {[%clk 0:00:10]} 48. Nf8 {[%clk 0:00:20]}  Kg7 {[%clk 0:00:09]} 49. Ne6+ {[%clk 0:00:18]}  Kf7 {[%clk 0:00:09]} 50. Nc5 {[%clk 0:00:17]}  Bd4+ {[%clk 0:00:09]} 51. Kf3 {[%clk 0:00:16]}  Bxc5 {[%clk 0:00:09]} 52. Rxc5 {[%clk 0:00:17]}  Ra4 {[%clk 0:00:10]} 53. Rc2 {[%clk 0:00:18]}  Kf6 {[%clk 0:00:10]} 54. Rb2 {[%clk 0:00:16]}  Ra3+ {[%clk 0:00:10]} 55. Kg2 {[%clk 0:00:16]}  Kg5 {[%clk 0:00:10]} 56. Kf2 {[%clk 0:00:16]}  Kg4 {[%clk 0:00:10]} 57. Rb4+ {[%clk 0:00:16]}  f4 {[%clk 0:00:10]} 58. Rb2 {[%clk 0:00:16]}  g5 {[%clk 0:00:11]} 59. Kg2 {[%clk 0:00:16]}  Kh4 {[%clk 0:00:11]} 60. Kh2 {[%clk 0:00:16]}  g4 {[%clk 0:00:12]} 61. Rd2 {[%clk 0:00:16]}  f3 {[%clk 0:00:10]} 62. Rb2 {[%clk 0:00:14]}  Re3 {[%clk 0:00:10]} 63. Kg1 {[%clk 0:00:15]}  g3 {[%clk 0:00:09]} 64. Rb1 {[%clk 0:00:14]}  Re2 {[%clk 0:00:08]} 65. Ra1 {[%clk 0:00:09]}  Rh2 {[%clk 0:00:08]} 0-1


[Site "https://www.chess.com"]

[Event "Titled Tuesday Blitz January 17 Early 2023"]
[White "Narayanan, Srinath"]
[Black "Santos Flores, Alberto"]
[WhiteFideId "5018420"]
[BlackFideId "3601234"]
[WhiteElo "2559"]
[BlackElo "2164"]
[Result "1-0"]
[Round "01"]
[TimeControl "180+2"]
[Date "2023.01.17"]
[WhiteClock "0:00:59"]
[BlackClock "0:00:09"]

1. Nf3 {[%clk 0:02:59]}  d5 {[%clk 0:02:58]} 2. e3 {[%clk 0:02:59]}  Nf6 {[%clk 0:02:58]} 3. c4 {[%clk 0:02:59]}  c6 {[%clk 0:02:58]} 4. Nc3 {[%clk 0:02:58]}  a6 {[%clk 0:02:58]} 5. d4 {[%clk 0:02:58]}  Bf5 {[%clk 0:02:58]} 6. Bd3 {[%clk 0:02:57]}  Bg6 {[%clk 0:02:58]} 7. O-O {[%clk 0:02:57]}  e6 {[%clk 0:02:58]} 8. Qe2 {[%clk 0:02:54]}  Bxd3 {[%clk 0:02:56]} 9. Qxd3 {[%clk 0:02:55]}  Nbd7 {[%clk 0:02:56]} 10. e4 {[%clk 0:02:54]}  dxe4 {[%clk 0:02:54]} 11. Nxe4 {[%clk 0:02:55]}  Be7 {[%clk 0:02:54]} 12. Bf4 {[%clk 0:02:52]}  O-O {[%clk 0:02:54]} 13. a3 {[%clk 0:02:31]}  b5 {[%clk 0:02:39]} 14. c5 {[%clk 0:02:26]}  Nxe4 {[%clk 0:02:06]} 15. Qxe4 {[%clk 0:02:27]}  Qc8 {[%clk 0:02:03]} 16. Be5 {[%clk 0:02:19]}  Rd8 {[%clk 0:01:53]} 17. Rad1 {[%clk 0:02:08]}  Nxe5 {[%clk 0:01:48]} 18. Nxe5 {[%clk 0:02:09]}  Rd5 {[%clk 0:01:48]} 19. Nd3 {[%clk 0:02:06]}  a5 {[%clk 0:01:36]} 20. Nf4 {[%clk 0:02:05]}  Rd7 {[%clk 0:01:31]} 21. Rd3 {[%clk 0:02:05]}  Bf6 {[%clk 0:01:31]} 22. Nh5 {[%clk 0:02:04]}  Be7 {[%clk 0:01:01]} 23. Qe5 {[%clk 0:01:56]}  Bf8 {[%clk 0:00:34]} 24. Rg3 {[%clk 0:01:52]}  Rd5 {[%clk 0:00:20]} 25. Nf6+ {[%clk 0:01:21]}  Kh8 {[%clk 0:00:21]} 26. Nxd5 {[%clk 0:01:21]}  cxd5 {[%clk 0:00:21]} 27. Rf3 {[%clk 0:01:16]}  Ra7 {[%clk 0:00:19]} 28. Rc1 {[%clk 0:01:15]}  Rc7 {[%clk 0:00:18]} 29. h4 {[%clk 0:01:14]}  h6 {[%clk 0:00:14]} 30. h5 {[%clk 0:01:14]}  Kg8 {[%clk 0:00:14]} 31. b4 {[%clk 0:01:09]}  a4 {[%clk 0:00:14]} 32. Qe2 {[%clk 0:01:09]}  Qb7 {[%clk 0:00:14]} 33. Qd3 {[%clk 0:01:06]}  Be7 {[%clk 0:00:14]} 34. Re1 {[%clk 0:01:06]}  Bf6 {[%clk 0:00:14]} 35. Rf4 {[%clk 0:01:05]}  Bg5 {[%clk 0:00:13]} 36. Rg4 {[%clk 0:01:05]}  Qc6 {[%clk 0:00:11]} 37. Qg3 {[%clk 0:01:05]}  Bf6 {[%clk 0:00:10]} 38. Qf4 {[%clk 0:01:05]}  Kh8 {[%clk 0:00:09]} 39. Rg3 {[%clk 0:01:00]}  Rc8 {[%clk 0:00:09]} 40. Rf3 {[%clk 0:01:00]}  Qc7 {[%clk 0:00:09]} 41. Qd2 {[%clk 0:00:59]}  Qc6 {[%clk 0:00:08]} 42. Rxf6 {[%clk 0:00:58]}  gxf6 {[%clk 0:00:08]} 43. Qxh6+ {[%clk 0:00:59]}  Kg8 {[%clk 0:00:09]} 44. Re3 {[%clk 0:00:59]} 1-0


[Site "https://www.chess.com"]

[Event "Titled Tuesday Blitz January 17 Early 2023"]
[White "Demchenko, Anton"]
[Black "Martin Duque, Jesus"]
[WhiteFideId "4160258"]
[BlackFideId "2208954"]
[WhiteElo "2623"]
[BlackElo "2386"]
[Result "1-0"]
[Round "01"]
[TimeControl "180+2"]
[Date "2023.01.17"]
[WhiteClock "0:01:56"]
[BlackClock "0:01:49"]

1. e4 {[%clk 0:02:58]}  c5 {[%clk 0:02:53]} 2. Nf3 {[%clk 0:02:57]}  b6 {[%clk 0:02:51]} 3. d4 {[%clk 0:02:48]}  cxd4 {[%clk 0:02:52]} 4. Qxd4 {[%clk 0:02:48]}  Bb7 {[%clk 0:02:52]} 5. Nc3 {[%clk 0:02:44]}  Nc6 {[%clk 0:02:52]} 6. Qe3 {[%clk 0:02:42]}  g6 {[%clk 0:02:53]} 7. Bc4 {[%clk 0:02:40]}  Bg7 {[%clk 0:02:52]} 8. O-O {[%clk 0:02:41]}  Nf6 {[%clk 0:02:51]} 9. h3 {[%clk 0:02:40]}  O-O {[%clk 0:02:48]} 10. e5 {[%clk 0:02:36]}  Ne8 {[%clk 0:02:47]} 11. Rd1 {[%clk 0:02:33]}  Rc8 {[%clk 0:02:32]} 12. a3 {[%clk 0:02:17]}  Nxe5 {[%clk 0:02:19]} 13. Nxe5 {[%clk 0:02:14]}  Bxe5 {[%clk 0:02:18]} 14. Qxe5 {[%clk 0:02:05]}  Rxc4 {[%clk 0:02:17]} 15. Bh6 {[%clk 0:02:06]}  f6 {[%clk 0:02:08]} 16. Qe2 {[%clk 0:02:02]}  Rxc3 {[%clk 0:02:07]} 17. Bxf8 {[%clk 0:01:58]}  Rc5 {[%clk 0:01:53]} 18. Bxe7 {[%clk 0:01:56]}  Qc8 {[%clk 0:01:49]} 1-0


[Site "https://www.chess.com"]

[Event "Titled Tuesday Blitz January 17 Early 2023"]
[White "Jegorovas, Aleksandras"]
[Black "Xu, Yi"]
[WhiteFideId "12801950"]
[BlackFideId "8605564"]
[WhiteElo "2270"]
[BlackElo "2527"]
[Result "1/2-1/2"]
[Round "01"]
[TimeControl "180+2"]
[Date "2023.01.17"]
[WhiteClock "0:00:19"]
[BlackClock "0:00:13"]

1. Nf3 {[%clk 0:02:59]}  d5 {[%clk 0:02:59]} 2. e3 {[%clk 0:02:58]}  Nf6 {[%clk 0:02:59]} 3. c4 {[%clk 0:02:57]}  e6 {[%clk 0:02:59]} 4. b3 {[%clk 0:02:57]}  b6 {[%clk 0:02:58]} 5. Bb2 {[%clk 0:02:57]}  Bd6 {[%clk 0:02:58]} 6. Nc3 {[%clk 0:02:54]}  a6 {[%clk 0:02:58]} 7. cxd5 {[%clk 0:02:53]}  exd5 {[%clk 0:02:58]} 8. g3 {[%clk 0:02:54]}  Bb7 {[%clk 0:02:54]} 9. Bg2 {[%clk 0:02:54]}  Nbd7 {[%clk 0:02:54]} 10. O-O {[%clk 0:02:53]}  O-O {[%clk 0:02:51]} 11. d4 {[%clk 0:02:53]}  Qe7 {[%clk 0:02:48]} 12. Ne2 {[%clk 0:02:48]}  Ne4 {[%clk 0:02:47]} 13. Nf4 {[%clk 0:02:47]}  g6 {[%clk 0:02:36]} 14. Nd3 {[%clk 0:02:46]}  f6 {[%clk 0:02:31]} 15. Rc1 {[%clk 0:02:45]}  Rac8 {[%clk 0:02:30]} 16. Qc2 {[%clk 0:02:29]}  Kg7 {[%clk 0:02:24]} 17. Nf4 {[%clk 0:02:22]}  Qf7 {[%clk 0:02:11]} 18. Bh3 {[%clk 0:02:21]}  Rfe8 {[%clk 0:02:09]} 19. Nd2 {[%clk 0:02:10]}  Nxd2 {[%clk 0:02:02]} 20. Qxd2 {[%clk 0:02:10]}  Rcd8 {[%clk 0:02:01]} 21. Qe2 {[%clk 0:02:01]}  Nf8 {[%clk 0:01:50]} 22. Qf3 {[%clk 0:02:00]}  a5 {[%clk 0:01:48]} 23. Rc2 {[%clk 0:01:58]}  a4 {[%clk 0:01:44]} 24. Rfc1 {[%clk 0:01:58]}  Ra8 {[%clk 0:01:34]} 25. Bg2 {[%clk 0:01:52]}  Ne6 {[%clk 0:00:54]} 26. Nxd5 {[%clk 0:01:48]}  Ra5 {[%clk 0:00:40]} 27. e4 {[%clk 0:01:30]}  Bxd5 {[%clk 0:00:40]} 28. exd5 {[%clk 0:01:30]}  Ng5 {[%clk 0:00:40]} 29. Qd3 {[%clk 0:01:24]}  axb3 {[%clk 0:00:39]} 30. axb3 {[%clk 0:01:24]}  f5 {[%clk 0:00:34]} 31. Re2 {[%clk 0:01:11]}  Raa8 {[%clk 0:00:26]} 32. Rce1 {[%clk 0:01:11]}  Rxe2 {[%clk 0:00:26]} 33. Rxe2 {[%clk 0:01:10]}  Re8 {[%clk 0:00:25]} 34. h4 {[%clk 0:01:10]}  Ne4 {[%clk 0:00:19]} 35. Bxe4 {[%clk 0:01:10]}  fxe4 {[%clk 0:00:20]} 36. Rxe4 {[%clk 0:01:10]}  Qf5 {[%clk 0:00:17]} 37. Re3 {[%clk 0:00:44]}  Rf8 {[%clk 0:00:17]} 38. Qxf5 {[%clk 0:00:43]}  Rxf5 {[%clk 0:00:17]} 39. Kg2 {[%clk 0:00:32]}  Rxd5 {[%clk 0:00:17]} 40. f4 {[%clk 0:00:27]}  h5 {[%clk 0:00:17]} 41. Kf3 {[%clk 0:00:26]}  Kf7 {[%clk 0:00:17]} 42. Ke4 {[%clk 0:00:27]}  Ra5 {[%clk 0:00:16]} 43. Rf3 {[%clk 0:00:24]}  Ra2 {[%clk 0:00:16]} 44. Bc3 {[%clk 0:00:23]}  Re2+ {[%clk 0:00:15]} 45. Kd3 {[%clk 0:00:22]}  Rg2 {[%clk 0:00:13]} 46. Ke4 {[%clk 0:00:18]}  Re2+ {[%clk 0:00:13]} 47. Kd3 {[%clk 0:00:18]}  Rg2 {[%clk 0:00:13]} 48. Ke4 {[%clk 0:00:19]}  Re2+ {[%clk 0:00:13]} 1/2-1/2


[Site "https://www.chess.com"]

[Event "Titled Tuesday Blitz January 17 Early 2023"]
[White "Shimanov, Aleksandr"]
[Black "Mortazavi, Ali"]
[WhiteFideId "4198603"]
[BlackFideId "401323"]
[WhiteElo "2581"]
[BlackElo "2333"]
[Result "1-0"]
[Round "01"]
[TimeControl "180+2"]
[Date "2023.01.17"]
[WhiteClock "0:00:07"]
[BlackClock "0:00:01"]

1. a3 {[%clk 0:02:55]}  b6 {[%clk 0:02:58]} 2. e4 {[%clk 0:02:45]}  Bb7 {[%clk 0:02:59]} 3. Nc3 {[%clk 0:02:45]}  c5 {[%clk 0:02:59]} 4. b4 {[%clk 0:02:45]}  e6 {[%clk 0:02:58]} 5. Rb1 {[%clk 0:02:38]}  cxb4 {[%clk 0:02:47]} 6. axb4 {[%clk 0:02:38]}  Nc6 {[%clk 0:02:48]} 7. b5 {[%clk 0:02:37]}  Nd4 {[%clk 0:02:48]} 8. Nge2 {[%clk 0:02:36]}  Qf6 {[%clk 0:02:34]} 9. Nxd4 {[%clk 0:02:23]}  Qxd4 {[%clk 0:02:34]} 10. Bd3 {[%clk 0:02:24]}  Nf6 {[%clk 0:02:08]} 11. Bb2 {[%clk 0:02:20]}  Qc5 {[%clk 0:02:06]} 12. O-O {[%clk 0:02:19]}  Bd6 {[%clk 0:02:04]} 13. Qe2 {[%clk 0:02:11]}  Qc7 {[%clk 0:02:03]} 14. h3 {[%clk 0:02:05]}  h5 {[%clk 0:01:56]} 15. Rbe1 {[%clk 0:01:51]}  Bh2+ {[%clk 0:01:55]} 16. Kh1 {[%clk 0:01:50]}  Be5 {[%clk 0:01:56]} 17. Nd1 {[%clk 0:01:46]}  g5 {[%clk 0:01:36]} 18. Bxe5 {[%clk 0:01:38]}  Qxe5 {[%clk 0:01:35]} 19. Ne3 {[%clk 0:01:39]}  Rc8 {[%clk 0:01:25]} 20. Nc4 {[%clk 0:01:35]}  Rxc4 {[%clk 0:01:25]} 21. Bxc4 {[%clk 0:01:36]}  Qxe4 {[%clk 0:00:41]} 22. Qxe4 {[%clk 0:01:32]}  Nxe4 {[%clk 0:00:41]} 23. Re2 {[%clk 0:01:27]}  g4 {[%clk 0:00:39]} 24. Kh2 {[%clk 0:01:20]}  Rg8 {[%clk 0:00:33]} 25. Ra1 {[%clk 0:00:58]}  gxh3 {[%clk 0:00:29]} 26. g3 {[%clk 0:00:57]}  Ng5 {[%clk 0:00:25]} 27. Rxa7 {[%clk 0:00:55]}  Nf3+ {[%clk 0:00:25]} 28. Kh1 {[%clk 0:00:56]}  h4 {[%clk 0:00:16]} 29. Rxb7 {[%clk 0:00:08]}  hxg3 {[%clk 0:00:16]} 30. Rb8+ {[%clk 0:00:08]}  Ke7 {[%clk 0:00:12]} 31. Rxg8 {[%clk 0:00:08]}  g2+ {[%clk 0:00:05]} 32. Rxg2 {[%clk 0:00:08]}  hxg2+ {[%clk 0:00:06]} 33. Kxg2 {[%clk 0:00:09]}  Nd4 {[%clk 0:00:06]} 34. Re3 {[%clk 0:00:08]}  Nxc2 {[%clk 0:00:06]} 35. Rc3 {[%clk 0:00:08]}  Nd4 {[%clk 0:00:04]} 36. Kf1 {[%clk 0:00:08]}  f5 {[%clk 0:00:03]} 37. Be2 {[%clk 0:00:08]}  Kd6 {[%clk 0:00:01]} 38. f4 {[%clk 0:00:07]} 1-0


[Site "https://www.chess.com"]

[Event "Titled Tuesday Blitz January 17 Early 2023"]
[White "Kamalidenova, Meruert"]
[Black "Movsesian, Sergei"]
[WhiteFideId "13712802"]
[BlackFideId "310204"]
[WhiteElo "2350"]
[BlackElo "2610"]
[Result "1-0"]
[Round "01"]
[TimeControl "180+2"]
[Date "2023.01.17"]
[WhiteClock "0:00:25"]
[BlackClock "0:00:08"]

1. e4 {[%clk 0:02:59]}  c5 {[%clk 0:02:59]} 2. c3 {[%clk 0:02:57]}  Qa5 {[%clk 0:02:58]} 3. Nf3 {[%clk 0:02:54]}  Nc6 {[%clk 0:02:57]} 4. Be2 {[%clk 0:02:53]}  d6 {[%clk 0:02:56]} 5. O-O {[%clk 0:02:54]}  Nf6 {[%clk 0:02:56]} 6. Qc2 {[%clk 0:02:49]}  e5 {[%clk 0:02:56]} 7. d4 {[%clk 0:02:39]}  cxd4 {[%clk 0:02:53]} 8. cxd4 {[%clk 0:02:39]}  exd4 {[%clk 0:02:47]} 9. Nbd2 {[%clk 0:02:34]}  Be6 {[%clk 0:02:39]} 10. Bc4 {[%clk 0:02:32]}  Be7 {[%clk 0:02:27]} 11. Nb3 {[%clk 0:02:26]}  Qb6 {[%clk 0:02:27]} 12. Rd1 {[%clk 0:02:18]}  O-O {[%clk 0:02:17]} 13. Bxe6 {[%clk 0:02:17]}  fxe6 {[%clk 0:02:17]} 14. Nbxd4 {[%clk 0:02:13]}  Nxd4 {[%clk 0:02:15]} 15. Nxd4 {[%clk 0:02:14]}  e5 {[%clk 0:02:13]} 16. Nf5 {[%clk 0:02:09]}  Rf7 {[%clk 0:02:11]} 17. Be3 {[%clk 0:02:06]}  Qa6 {[%clk 0:02:11]} 18. f3 {[%clk 0:02:00]}  Bf8 {[%clk 0:02:09]} 19. Qb3 {[%clk 0:01:55]}  g6 {[%clk 0:01:59]} 20. Ng3 {[%clk 0:01:40]}  h5 {[%clk 0:01:45]} 21. Rac1 {[%clk 0:01:39]}  Rd8 {[%clk 0:01:42]} 22. Bg5 {[%clk 0:01:36]}  Bg7 {[%clk 0:01:32]} 23. Kh1 {[%clk 0:01:30]}  Rf8 {[%clk 0:01:26]} 24. Rc7 {[%clk 0:01:23]}  Nh7 {[%clk 0:00:38]} 25. Be7 {[%clk 0:01:16]}  Kh8 {[%clk 0:00:38]} 26. Bxf8 {[%clk 0:01:06]}  Rxc7 {[%clk 0:00:37]} 27. Bxd6 {[%clk 0:00:52]}  Rd7 {[%clk 0:00:30]} 28. Ba3 {[%clk 0:00:52]}  Rxd1+ {[%clk 0:00:24]} 29. Qxd1 {[%clk 0:00:53]}  Nf6 {[%clk 0:00:23]} 30. h4 {[%clk 0:00:50]}  Kh7 {[%clk 0:00:22]} 31. Ne2 {[%clk 0:00:46]}  Qc4 {[%clk 0:00:21]} 32. Ng1 {[%clk 0:00:47]}  Qxa2 {[%clk 0:00:19]} 33. Nh3 {[%clk 0:00:47]}  Bh6 {[%clk 0:00:18]} 34. Be7 {[%clk 0:00:45]}  Ne8 {[%clk 0:00:17]} 35. Qd7 {[%clk 0:00:44]}  Qf7 {[%clk 0:00:17]} 36. Qd8 {[%clk 0:00:41]}  Ng7 {[%clk 0:00:15]} 37. Bf6 {[%clk 0:00:34]}  Ne8 {[%clk 0:00:14]} 38. Bg5 {[%clk 0:00:33]}  Bg7 {[%clk 0:00:14]} 39. Be3 {[%clk 0:00:28]}  Kg8 {[%clk 0:00:13]} 40. Ng5 {[%clk 0:00:28]}  Qf8 {[%clk 0:00:13]} 41. Qd5+ {[%clk 0:00:27]}  Kh8 {[%clk 0:00:12]} 42. Qxb7 {[%clk 0:00:24]}  Nf6 {[%clk 0:00:09]} 43. Ne6 {[%clk 0:00:24]}  Qg8 {[%clk 0:00:09]} 44. Nxg7 {[%clk 0:00:23]}  Qxg7 {[%clk 0:00:09]} 45. Qb8+ {[%clk 0:00:23]}  Kh7 {[%clk 0:00:09]} 46. Qxa7 {[%clk 0:00:24]}  Qxa7 {[%clk 0:00:08]} 47. Bxa7 {[%clk 0:00:25]}  Ne8 {[%clk 0:00:08]} 48. Bb8 {[%clk 0:00:24]}  Kg7 {[%clk 0:00:08]} 49. Bxe5+ {[%clk 0:00:25]}  Kf7 {[%clk 0:00:09]} 50. b4 {[%clk 0:00:25]}  Ke6 {[%clk 0:00:10]} 51. f4 {[%clk 0:00:25]}  Kd7 {[%clk 0:00:08]} 52. b5 {[%clk 0:00:25]} 1-0


[Site "https://www.chess.com"]

[Event "Titled Tuesday Blitz January 17 Early 2023"]
[White "Ahmad, Al Khatib"]
[Black "Zierk, Steven"]
[WhiteFideId "8103178"]
[BlackFideId "2034255"]
[WhiteElo "2344"]
[BlackElo "2488"]
[Result "0-1"]
[Round "01"]
[TimeControl "180+2"]
[Date "2023.01.17"]
[WhiteClock "0:00:04"]
[BlackClock "0:00:21"]

1. Nf3 {[%clk 0:02:43]}  d5 {[%clk 0:02:58]} 2. g3 {[%clk 0:02:43]}  Nf6 {[%clk 0:02:58]} 3. Bg2 {[%clk 0:02:43]}  c6 {[%clk 0:02:58]} 4. O-O {[%clk 0:02:43]}  Bg4 {[%clk 0:02:59]} 5. d3 {[%clk 0:02:43]}  e6 {[%clk 0:02:59]} 6. Nbd2 {[%clk 0:02:43]}  Nbd7 {[%clk 0:02:59]} 7. Qe1 {[%clk 0:02:41]}  Be7 {[%clk 0:02:58]} 8. e4 {[%clk 0:02:41]}  dxe4 {[%clk 0:02:58]} 9. dxe4 {[%clk 0:02:42]}  e5 {[%clk 0:02:55]} 10. Nc4 {[%clk 0:02:41]}  Qc7 {[%clk 0:02:55]} 11. h3 {[%clk 0:02:19]}  Bh5 {[%clk 0:02:55]} 12. Qc3 {[%clk 0:02:04]}  Nxe4 {[%clk 0:02:52]} 13. Qe3 {[%clk 0:02:04]}  Bxf3 {[%clk 0:02:51]} 14. Bxf3 {[%clk 0:02:00]}  Nd6 {[%clk 0:02:43]} 15. Nxd6+ {[%clk 0:01:40]}  Qxd6 {[%clk 0:02:44]} 16. Rd1 {[%clk 0:01:38]}  Qe6 {[%clk 0:02:44]} 17. Qb3 {[%clk 0:01:23]}  Nc5 {[%clk 0:02:40]} 18. Qxe6 {[%clk 0:01:18]}  Nxe6 {[%clk 0:02:41]} 19. Be3 {[%clk 0:01:16]}  O-O {[%clk 0:02:38]} 20. c3 {[%clk 0:01:16]}  Rfd8 {[%clk 0:02:38]} 21. Rxd8+ {[%clk 0:01:15]}  Bxd8 {[%clk 0:02:36]} 22. Rd1 {[%clk 0:01:16]}  Bb6 {[%clk 0:02:34]} 23. Bc1 {[%clk 0:01:12]}  Rd8 {[%clk 0:02:32]} 24. Rxd8+ {[%clk 0:01:11]}  Bxd8 {[%clk 0:02:33]} 25. Be3 {[%clk 0:01:08]}  Bb6 {[%clk 0:02:32]} 26. Bd2 {[%clk 0:01:07]}  f5 {[%clk 0:02:29]} 27. Bd1 {[%clk 0:01:06]}  Kf7 {[%clk 0:02:28]} 28. Bb3 {[%clk 0:01:05]}  Kf6 {[%clk 0:02:29]} 29. h4 {[%clk 0:01:04]}  e4 {[%clk 0:02:19]} 30. Bg5+ {[%clk 0:00:55]}  Nxg5 {[%clk 0:02:18]} 31. hxg5+ {[%clk 0:00:56]}  Kxg5 {[%clk 0:02:18]} 32. Be6 {[%clk 0:00:54]}  Bc7 {[%clk 0:02:08]} 33. Bc8 {[%clk 0:00:53]}  b6 {[%clk 0:02:08]} 34. Bb7 {[%clk 0:00:54]}  c5 {[%clk 0:02:08]} 35. Kg2 {[%clk 0:00:54]}  Kf6 {[%clk 0:02:06]} 36. Bc8 {[%clk 0:00:52]}  g5 {[%clk 0:02:05]} 37. Kf1 {[%clk 0:00:51]}  h5 {[%clk 0:02:03]} 38. Kg2 {[%clk 0:00:45]}  Be5 {[%clk 0:02:01]} 39. f3 {[%clk 0:00:37]}  e3 {[%clk 0:01:56]} 40. Ba6 {[%clk 0:00:31]}  g4 {[%clk 0:01:43]} 41. f4 {[%clk 0:00:27]}  Bd6 {[%clk 0:01:43]} 42. Bc8 {[%clk 0:00:26]}  h4 {[%clk 0:01:42]} 43. Ba6 {[%clk 0:00:23]}  Ke7 {[%clk 0:01:34]} 44. Bd3 {[%clk 0:00:22]}  h3+ {[%clk 0:01:25]} 45. Kh2 {[%clk 0:00:21]}  Kd8 {[%clk 0:01:24]} 46. b3 {[%clk 0:00:11]}  Kc7 {[%clk 0:01:21]} 47. c4 {[%clk 0:00:12]}  a6 {[%clk 0:01:08]} 48. Be2 {[%clk 0:00:09]}  Kc6 {[%clk 0:01:07]} 49. Bd3 {[%clk 0:00:10]}  b5 {[%clk 0:01:07]} 50. Kg1 {[%clk 0:00:07]}  Kb6 {[%clk 0:01:04]} 51. Bxf5 {[%clk 0:00:03]}  e2 {[%clk 0:00:50]} 52. Kf2 {[%clk 0:00:02]}  h2 {[%clk 0:00:49]} 53. Be4 {[%clk 0:00:03]}  Ka5 {[%clk 0:00:50]} 54. Kxe2 {[%clk 0:00:02]}  bxc4 {[%clk 0:00:41]} 55. bxc4 {[%clk 0:00:03]}  Kb4 {[%clk 0:00:41]} 56. Kf2 {[%clk 0:00:03]}  Kxc4 {[%clk 0:00:41]} 57. Kg2 {[%clk 0:00:03]}  Kd4 {[%clk 0:00:42]} 58. Bf5 {[%clk 0:00:04]}  c4 {[%clk 0:00:38]} 59. Bxg4 {[%clk 0:00:04]}  c3 {[%clk 0:00:35]} 60. Bf5 {[%clk 0:00:05]}  Ke3 {[%clk 0:00:35]} 61. Bg6 {[%clk 0:00:04]}  Kd2 {[%clk 0:00:33]} 62. Kxh2 {[%clk 0:00:04]}  c2 {[%clk 0:00:34]} 63. Bxc2 {[%clk 0:00:04]}  Kxc2 {[%clk 0:00:34]} 64. f5 {[%clk 0:00:04]}  Kb2 {[%clk 0:00:34]} 65. Kh3 {[%clk 0:00:04]}  Kxa2 {[%clk 0:00:34]} 66. g4 {[%clk 0:00:04]}  Be7 {[%clk 0:00:33]} 67. Kg3 {[%clk 0:00:04]}  Bg5 {[%clk 0:00:32]} 68. Kf3 {[%clk 0:00:03]}  Kb3 {[%clk 0:00:33]} 69. Ke4 {[%clk 0:00:04]}  a5 {[%clk 0:00:33]} 70. Ke5 {[%clk 0:00:05]}  a4 {[%clk 0:00:32]} 71. f6 {[%clk 0:00:06]}  Bxf6+ {[%clk 0:00:28]} 72. Kxf6 {[%clk 0:00:06]}  a3 {[%clk 0:00:29]} 73. g5 {[%clk 0:00:06]}  a2 {[%clk 0:00:29]} 74. g6 {[%clk 0:00:07]}  a1=Q+ {[%clk 0:00:30]} 75. Kf7 {[%clk 0:00:08]}  Qa7+ {[%clk 0:00:30]} 76. Kg8 {[%clk 0:00:08]}  Qb8+ {[%clk 0:00:29]} 77. Kh7 {[%clk 0:00:08]}  Qh2+ {[%clk 0:00:29]} 78. Kg8 {[%clk 0:00:08]}  Kc4 {[%clk 0:00:28]} 79. g7 {[%clk 0:00:09]}  Kd5 {[%clk 0:00:28]} 80. Kf7 {[%clk 0:00:10]}  Qf4+ {[%clk 0:00:27]} 81. Ke7 {[%clk 0:00:10]}  Qg5+ {[%clk 0:00:27]} 82. Kf7 {[%clk 0:00:10]}  Qf5+ {[%clk 0:00:27]} 83. Ke7 {[%clk 0:00:10]}  Qg6 {[%clk 0:00:27]} 84. Kf8 {[%clk 0:00:05]}  Qf6+ {[%clk 0:00:21]} 85. Kg8 {[%clk 0:00:05]}  Ke6 {[%clk 0:00:21]} 86. Kh7 {[%clk 0:00:04]}  Qh4+ {[%clk 0:00:20]} 87. Kg6 {[%clk 0:00:04]}  Qg4+ {[%clk 0:00:20]} 88. Kh7 {[%clk 0:00:03]}  Qh5+ {[%clk 0:00:19]} 89. Kg8 {[%clk 0:00:04]}  Kf6 {[%clk 0:00:20]} 90. Kf8 {[%clk 0:00:04]}  Qf7# {[%clk 0:00:21]} 0-1


[Site "https://www.chess.com"]